fUSD/lending_fUSD_20250514
["ID","MTS","AMOUNT","RATE_DAILY","PERIOD"]
[361052783,1747219352725,-400.0,0.0001099,2]
[361052784,1747219352748,-795.43,0.0001099,2]
[361052785,1747219352769,-499.38,0.0001099,2]
[361052786,1747219352792,-406.86582108,0.0001099,2]
[361052787,1747219352814,-653.57,0.0001099,2]
[361052788,1747219352836,-641.65,0.0001099,2]
[361052789,1747219352858,-400.0,0.0001099,2]
[361052790,1747219352879,-400.0,0.0001099,2]
[361052791,1747219352905,-400.0,0.0001099,2]
[361052792,1747219352928,-400.0,0.0001099,2]
[361052793,1747219352951,-405.44853495,0.0001099,2]
[361052794,1747219352973,-470.57,0.0001099,2]
[361052795,1747219352995,-400.0,0.0001099,2]
[361052796,1747219353019,-400.0,0.0001099,2]
[361052797,1747219353045,-400.0,0.0001099,2]
[361052798,1747219353068,-704.02,0.0001099,2]
[361052799,1747219353091,-703.16,0.0001099,2]
[361052800,1747219353114,-400.0,0.0001099,2]
[361052801,1747219353137,-400.0,0.0001099,2]
[361052802,1747219353160,-400.0,0.0001099,2]
[361052803,1747219353183,-400.0,0.0001099,2]
[361052804,1747219353209,-400.0,0.0001099,2]
[361052805,1747219353232,-495.96,0.0001099,2]
[361052806,1747219353255,-400.0,0.0001099,2]
[361052807,1747219353278,-400.0,0.0001099,2]
[361052808,1747219353304,-782.42,0.0001099,2]
[361052809,1747219353328,-706.26,0.0001099,2]
[361052810,1747219353352,-400.0,0.0001099,2]
[361052811,1747219353381,-400.0,0.0001099,2]
[361052812,1747219353409,-400.0,0.0001099,2]
[361052813,1747219353434,-697.52,0.0001099,2]
[361052814,1747219353460,-400.0,0.0001099,2]
[361052815,1747219353485,-400.0,0.0001099,2]
[361052816,1747219353713,-400.0,0.0001099,2]
[361052817,1747219353753,-560.63,0.0001099,2]
[361052818,1747219353777,-400.0,0.0001099,2]
[361052819,1747219353799,-400.0,0.0001099,2]
[361052820,1747219353823,-400.0,0.0001099,2]
[361052821,1747219353846,-400.0,0.0001099,2]
[361052822,1747219353869,-786.32,0.0001099,2]
[361052823,1747219353892,-879.99,0.0001099,2]
[361052824,1747219353914,-400.0,0.0001099,2]
[361052825,1747219353950,-400.0,0.0001099,2]
[361052826,1747219353977,-1691.99,0.0001099,2]
[361052827,1747219354000,-400.0,0.0001099,2]
[361052828,1747219354024,-167.76905917,0.0001099,2]
[361052829,1747219354048,-400.0,0.0001099,2]
[361052830,1747219354071,-400.0,0.0001099,2]
[361052831,1747219354095,-400.0,0.0001099,2]
[361052832,1747219354118,-1096.36,0.0001099,2]
[361052833,1747219354142,-400.0,0.0001099,2]
[361052834,1747219354166,-932.51,0.0001099,2]
[361052835,1747219354188,-400.0,0.0001099,2]
[361052836,1747219354212,-1025.7,0.0001099,2]
[361052837,1747219354235,-400.0,0.0001099,2]
[361052838,1747219354257,-400.0,0.0001099,2]
[361052839,1747219354279,-400.0,0.0001099,2]
[361052840,1747219354302,-400.0,0.0001099,2]
[361052841,1747219354325,-2025.13,0.0001099,2]
[361052842,1747219354350,-1073.22,0.0001099,2]
[361052843,1747219354387,-400.0,0.0001099,2]
[361052844,1747219354410,-400.0,0.0001099,2]
[361052845,1747219354433,-866.98,0.0001099,2]
[361052846,1747219354460,-1608.39,0.0001099,2]
[361052847,1747219354484,-400.0,0.0001099,2]
[361052848,1747219354507,-400.0,0.0001099,2]
[361052849,1747219354530,-1616.77,0.0001099,2]
[361052850,1747219354553,-811.56,0.0001099,2]
[361052851,1747219354575,-400.0,0.0001099,2]
[361052852,1747219354598,-400.0,0.0001099,2]
[361052853,1747219354622,-400.0,0.0001099,2]
[361052854,1747219354648,-438.62,0.0001099,2]
[361052855,1747219354671,-400.0,0.0001099,2]
[361052856,1747219354695,-2040.76,0.0001099,2]
[361052857,1747219354717,-400.0,0.0001099,2]
[361052858,1747219354740,-400.0,0.0001099,2]
[361052859,1747219354762,-400.0,0.0001099,2]
[361052860,1747219354788,-400.0,0.0001099,2]
[361052861,1747219354811,-590.8,0.0001099,2]
[361052862,1747219354833,-400.0,0.0001099,2]
[361052863,1747219354856,-453.18,0.0001099,2]
[361052864,1747219354880,-400.0,0.0001099,2]
[361052865,1747219354904,-152.63421455,0.0001099,2]
[361052866,1747219354927,-1469.96,0.0001099,2]
[361052867,1747219354950,-964.92,0.0001099,2]
[361052868,1747219354973,-400.0,0.0001099,2]
[361052869,1747219354997,-842.27,0.0001099,2]
[361052870,1747219355021,-883.03,0.0001099,2]
[361052871,1747219355045,-400.0,0.0001099,2]
[361052872,1747219355069,-400.0,0.0001099,2]
[361052873,1747219355096,-1478.15,0.0001099,2]
[361052874,1747219355120,-400.0,0.0001099,2]
[361052875,1747219355143,-495.43,0.0001099,2]
[361052876,1747219355167,-495.55,0.0001099,2]
[361052877,1747219355190,-449.08,0.0001099,2]
[361052878,1747219355214,-549.29,0.0001099,2]
[361052879,1747219355238,-400.0,0.0001099,2]
[361052880,1747219355266,-450.0,0.0001099,2]
[361052881,1747219355291,-400.0,0.0001099,2]
[361052882,1747219355315,-400.0,0.0001099,2]
[361052883,1747219355339,-962.06,0.0001099,2]
[361052884,1747219355362,-1774.96,0.0001099,2]
[361052885,1747219355384,-1166.32,0.0001099,2]
[361052886,1747219355406,-324.58598056,0.0001099,2]
[361052887,1747219355428,-422.38,0.0001099,2]
[361052888,1747219355452,-400.0,0.0001099,2]
[361052889,1747219355474,-400.0,0.0001099,2]
[361052890,1747219355496,-2479.71,0.0001099,2]
[361052891,1747219355518,-465.93,0.0001099,2]
[361052892,1747219355540,-400.0,0.0001099,2]
[361052893,1747219355562,-400.0,0.0001099,2]
[361052894,1747219355584,-1038.87,0.0001099,2]
[361052895,1747219355607,-788.66,0.0001099,2]
[361052896,1747219355631,-400.0,0.0001099,2]
[361052897,1747219355653,-400.0,0.0001099,2]
[361052898,1747219355676,-400.0,0.0001099,2]
[361052899,1747219355698,-3854.51,0.0001099,2]
[361052900,1747219355721,-403.64,0.0001099,2]
[361052901,1747219355743,-426.05,0.0001099,2]
[361052902,1747219355765,-400.0,0.0001099,2]
[361052903,1747219355787,-1544.98,0.0001099,2]
[361052904,1747219355809,-356.79228322,0.0001099,2]
[361052905,1747219355830,-400.0,0.0001099,2]
[361052906,1747219355852,-764.9,0.0001099,2]
[361052907,1747219355873,-646.37,0.0001099,2]
[361052908,1747219355895,-2741.57,0.0001099,2]
[361052909,1747219355917,-400.0,0.0001099,2]
[361052910,1747219355940,-2804.45,0.0001099,2]
[361052911,1747219355964,-401.6,0.0001099,2]
[361052912,1747219355987,-1563.96,0.0001099,2]
[361052913,1747219356009,-400.0,0.0001099,2]
[361052914,1747219356035,-1872.19,0.0001099,2]
[361052915,1747219356058,-400.0,0.0001099,2]
[361052916,1747219356083,-400.0,0.0001099,2]
[361052917,1747219356106,-1889.35,0.0001099,2]
[361052918,1747219356129,-400.0,0.0001099,2]
[361052919,1747219356152,-845.3,0.0001099,2]
[361052920,1747219356176,-1519.34,0.0001099,2]
[361052921,1747219356199,-678.78,0.0001099,2]
[361052922,1747219356221,-549.83,0.0001099,2]
[361052923,1747219356408,-400.0,0.0001099,2]
[361052924,1747219356431,-400.0,0.0001099,2]
[361052925,1747219356453,-400.0,0.0001099,2]
[361052926,1747219356474,-400.0,0.0001099,2]
[361052927,1747219356496,-4241.4,0.0001099,2]
[361052928,1747219356520,-400.0,0.0001099,2]
[361052929,1747219356543,-400.0,0.0001099,2]
[361052930,1747219356564,-717.22,0.0001099,2]
[361052931,1747219356586,-400.0,0.0001099,2]
[361052932,1747219356607,-3687.71,0.0001099,2]
[361052933,1747219356631,-400.0,0.0001099,2]
[361052934,1747219356653,-400.0,0.0001099,2]
[361052935,1747219356675,-400.0,0.0001099,2]
[361052936,1747219356697,-435.2,0.0001099,2]
[361052937,1747219356726,-902.44,0.0001099,2]
[361052938,1747219356748,-3286.69,0.0001099,2]
[361052939,1747219356770,-400.0,0.0001099,2]
[361052940,1747219356792,-400.0,0.0001099,2]
[361052941,1747219356813,-797.92,0.0001099,2]
[361052942,1747219356836,-400.0,0.0001099,2]
[361052943,1747219356857,-400.0,0.0001099,2]
[361052944,1747219356879,-400.0,0.0001099,2]
[361052945,1747219356900,-400.0,0.0001099,2]
[361052946,1747219356922,-400.0,0.0001099,2]
[361052947,1747219356944,-6787.67,0.0001099,2]
[361052948,1747219356968,-400.0,0.0001099,2]
[361052949,1747219356989,-223.95558805,0.0001099,2]
[361052950,1747219357010,-400.0,0.0001099,2]
[361052951,1747219357032,-400.0,0.0001099,2]
[361052952,1747219357053,-400.0,0.0001099,2]
[361052953,1747219357074,-400.0,0.0001099,2]
[361052954,1747219357096,-400.0,0.0001099,2]
[361052955,1747219357117,-2004.97,0.0001099,2]
[361052956,1747219357138,-518.98,0.0001099,2]
[361052957,1747219357160,-595.47,0.0001099,2]
[361052958,1747219357185,-870.24,0.0001099,2]
[361052959,1747219357206,-476.09,0.0001099,2]
[361052960,1747219357227,-400.0,0.0001099,2]
[361052961,1747219357250,-4844.29,0.0001099,2]
[361052962,1747219357273,-443.25,0.0001099,2]
[361052963,1747219357295,-400.0,0.0001099,2]
[361052964,1747219357320,-540.4,0.0001099,2]
[361052965,1747219357344,-400.0,0.0001099,2]
[361052966,1747219357367,-400.0,0.0001099,2]
[361052967,1747219357392,-400.0,0.0001099,2]
[361052968,1747219357415,-9491.43,0.0001099,2]
[361052969,1747219357439,-9787.05,0.0001099,2]
[361052970,1747219357466,-400.0,0.0001099,2]
[361052971,1747219357491,-400.0,0.0001099,2]
[361052972,1747219357515,-400.0,0.0001099,2]
[361052973,1747219357538,-712.36,0.0001099,2]
[361052974,1747219357561,-452.74,0.0001099,2]
[361052975,1747219357587,-469.27,0.0001099,2]
[361052976,1747219357611,-540.58,0.0001099,2]
[361052977,1747219357636,-400.0,0.0001099,2]
[361052978,1747219357660,-1081.04,0.0001099,2]
[361052979,1747219357684,-661.93,0.0001099,2]
[361052980,1747219357713,-834.31,0.0001099,2]
[361052981,1747219357737,-1335.34,0.0001099,2]
[361052982,1747219357761,-400.0,0.0001099,2]
[361052983,1747219357784,-607.23,0.0001099,2]
[361052984,1747219357806,-539.5,0.0001099,2]
[361052985,1747219357830,-6470.61,0.0001099,2]
[361052986,1747219357853,-738.23,0.0001099,2]
[361052987,1747219357876,-400.0,0.0001099,2]
[361052988,1747219357899,-400.0,0.0001099,2]
[361052989,1747219357922,-400.0,0.0001099,2]
[361052990,1747219357946,-400.0,0.0001099,2]
[361052991,1747219357972,-400.0,0.0001099,2]
[361052992,1747219357995,-1134.44,0.0001099,2]
[361052993,1747219358018,-465.5842413,0.0001099,2]
[361052994,1747219358041,-746.95,0.0001099,2]
[361052995,1747219358064,-1218.76,0.0001099,2]
[361052996,1747219358087,-400.0,0.0001099,2]
[361052997,1747219358110,-177.07876589,0.0001099,2]
[361052998,1747219358134,-1860.23,0.0001099,2]
[361052999,1747219358157,-400.0,0.0001099,2]
[361053000,1747219358180,-381.87549053,0.0001099,2]
[361053001,1747219358206,-400.26,0.0001099,2]
[361053002,1747219358230,-400.0,0.0001099,2]
[361053003,1747219358254,-400.0,0.0001099,2]
[361053004,1747219358277,-5795.6,0.0001099,2]
[361053005,1747219358300,-661.8,0.0001099,2]
[361053006,1747219358324,-400.0,0.0001099,2]
[361053007,1747219358348,-400.0,0.0001099,2]
[361053008,1747219358371,-400.0,0.0001099,2]
[361053009,1747219358399,-400.0,0.0001099,2]
[361053010,1747219358423,-400.0,0.0001099,2]
[361053011,1747219358449,-400.0,0.0001099,2]
[361053012,1747219358479,-6314.22,0.0001099,2]
[361053013,1747219358504,-400.0,0.0001099,2]
[361053014,1747219358529,-400.0,0.0001099,2]
[361053015,1747219358553,-596.01,0.0001099,2]
[361053016,1747219358576,-400.0,0.0001099,2]
[361053017,1747219358600,-2693.07,0.0001099,2]
[361053018,1747219358625,-400.0,0.0001099,2]
[361053019,1747219358650,-400.0,0.0001099,2]
[361053020,1747219358673,-1880.99,0.0001099,2]
[361053021,1747219358696,-400.0,0.0001099,2]
[361053022,1747219358722,-2810.12,0.0001099,2]
[361053023,1747219358745,-555.6,0.0001099,2]
[361053024,1747219358768,-400.0,0.0001099,2]
[361053025,1747219358922,-400.0,0.0001099,2]
[361053026,1747219358945,-476.08,0.0001099,2]
[361053027,1747219358971,-400.0,0.0001099,2]
[361053028,1747219358994,-400.0,0.0001099,2]
[361053029,1747219359016,-2007.58,0.0001099,2]
[361053030,1747219359041,-400.0,0.0001099,2]
[361053031,1747219359064,-1000.0,0.0001099,2]
[361053032,1747219359087,-400.0,0.0001099,2]
[361053033,1747219359111,-400.0,0.0001099,2]
[361053034,1747219359133,-400.0,0.0001099,2]
[361053035,1747219359154,-404.88,0.0001099,2]
[361053036,1747219359175,-1946.57,0.0001099,2]
[361053037,1747219359198,-400.0,0.0001099,2]
[361053038,1747219359221,-403.22,0.0001099,2]
[361053039,1747219359244,-400.0,0.0001099,2]
[361053040,1747219359265,-152.358966,0.00010995,2]
[361053041,1747219359289,-151.0,0.00010995,2]
[361053042,1747219359312,-151.0,0.00010995,2]
[361053043,1747219359333,-151.0,0.00010995,2]
[361053044,1747219359355,-151.0,0.00010996,2]
[361053045,1747219359395,-212.531362,0.00010996,2]
[361053046,1747219359419,-151.0,0.00010996,2]
[361053047,1747219359443,-151.0,0.00010996,2]
[361053048,1747219359468,-151.0,0.00010996,2]
[361053049,1747219359490,-151.0,0.00010997,2]
[361053050,1747219359515,-151.0,0.00010997,2]
[361053051,1747219359537,-151.0,0.00010997,2]
[361053052,1747219359559,-151.0,0.00010998,2]
[361053053,1747219359583,-381.3518988,0.00010999,2]
[361053054,1747219359605,-222.05588322,0.00010999,2]
[361053055,1747219359631,-400.0,0.00010999,2]
[361053056,1747219359654,-400.0,0.00010999,2]
[361053057,1747219359678,-166.82696487,0.00010999,2]
[361053058,1747219359703,-400.0,0.00010999,2]
[361053059,1747219359726,-169.241,0.00010999,2]
[361053060,1747219359749,-2586.564,0.00010999,2]
[361053061,1747219359773,-748.64,0.00010999,2]
[361053062,1747219359798,-748.64,0.00010999,2]
[361053063,1747219359820,-748.64,0.00010999,2]
[361053064,1747219359841,-586.0,0.00011,2]
[361053065,1747219359862,-701.79548569,0.00011,2]
[361053066,1747219359885,-562935.75010912,0.00011,2]
[361053067,1747219359906,-183.963342,0.00011,2]
[361053068,1747219359927,-183.963342,0.00011,2]
[361053069,1747219359948,-280.479312,0.00011,2]
[361053070,1747219359971,-280.479312,0.00011,2]
[361053071,1747219359993,-280.479312,0.00011,2]
[361053072,1747219360014,-280.479312,0.00011,2]
[361053073,1747219360035,-200.0,0.00011,2]
[361053074,1747219360058,-455.49979,0.00011,2]
[361053075,1747219360081,-455.49979,0.00011,2]
[361053076,1747219360103,-207.361168,0.00011,2]
[361053077,1747219360125,-207.361168,0.00011,2]
[361053078,1747219360147,-455.49979,0.00011,2]
[361053079,1747219360169,-455.499789,0.00011,2]
[361053080,1747219360191,-151.0,0.00011,2]
[361053081,1747219360215,-207.361168,0.00011,2]
[361053082,1747219360237,-207.361168,0.00011,2]
[361053083,1747219360259,-151.0,0.00011,2]
[361053084,1747219360280,-187.855488,0.00011,2]
[361053085,1747219360302,-157.11879838,0.00011,2]
[361053086,1747219360323,-544.34549968,0.00011,2]
[361053087,1747219360347,-217654.9395581,0.00011,2]
[361053088,1747219360369,-8870.99482877,0.00011,2]
[361053089,1747219431098,-23900.0,0.00010333,2]
[361053090,1747219431120,-206.1,0.0001035,2]
[361053091,1747219431144,-1000.0,0.00010889,2]
[361053092,1747219431166,-500.0,0.00010973,2]
[361053093,1747219431188,-94980.2934905,0.00010988,2]
[361053094,1747219431210,-861.06,0.00010989,2]
[361053095,1747219431234,-400.0,0.00010989,2]
[361053096,1747219431257,-400.0,0.00010989,2]
[361053097,1747219431282,-400.0,0.00010989,2]
[361053098,1747219431304,-400.0,0.00010989,2]
[361053099,1747219431327,-400.0,0.00010989,2]
[361053100,1747219431349,-422.1,0.00010989,2]
[361053101,1747219431372,-400.0,0.00010989,2]
[361053102,1747219431395,-400.0,0.00010989,2]
[361053103,1747219431417,-400.0,0.00010989,2]
[361053104,1747219431439,-400.0,0.00010989,2]
[361053105,1747219431461,-400.0,0.00010989,2]
[361053106,1747219431484,-400.0,0.00010989,2]
[361053107,1747219431505,-400.0,0.00010989,2]
[361053108,1747219431526,-400.0,0.00010989,2]
[361053109,1747219431549,-400.0,0.00010989,2]
[361053110,1747219431571,-400.0,0.00010989,2]
[361053111,1747219431592,-400.0,0.00010989,2]
[361053112,1747219431613,-400.0,0.00010989,2]
[361053113,1747219431635,-400.0,0.00010989,2]
[361053114,1747219431660,-400.0,0.00010989,2]
[361053115,1747219431682,-1607.1,0.00010989,2]
[361053116,1747219431705,-396.8120745,0.00010989,2]
[361053117,1747219431728,-465.08,0.00010989,2]
[361053118,1747219431751,-763.45,0.00010989,2]
[361053119,1747219431773,-1012.25,0.00010989,2]
[361053120,1747219431795,-400.0,0.00010989,2]
[361053121,1747219431981,-537.754435,0.00010989,2]
[361053138,1747219831791,-450.0,0.0001,2]
[361053139,1747219831803,-166.41,0.0001054,2]
[361053140,1747219831812,-600.7669803,0.0001089,2]
[361053141,1747219831823,-184.63502211,0.000109,2]
[361053142,1747219831840,-150.0,0.00010959,2]
[361053143,1747219831852,-300.0,0.00010986,2]
[361053144,1747219831861,-1200.0,0.00010986,2]
[361053145,1747219831870,-150.0,0.00010987,2]
[361053146,1747219831880,-189.46352775,0.00010988,2]
[361053147,1747219831890,-292.9564939,0.00010988,2]
[361053148,1747219831899,-281.315565,0.00010989,2]
[361053149,1747219831908,-400.0,0.00010989,2]
[361053150,1747219831918,-1832.1,0.00010989,2]
[361053151,1747219831927,-321.66690733,0.00010989,2]
[361053152,1747219831939,-175.24223701,0.00010989,2]
[361053153,1747219831949,-400.0,0.00010989,2]
[361053154,1747219831958,-400.0,0.00010989,2]
[361053155,1747219831968,-67.57761992,0.00010989,2]
[361053156,1747219831980,-375.27238008,0.00010989,2]
[361053157,1747219831990,-109.72761992,0.00010989,2]
[361053177,1747219832288,-842.84238008,0.00010989,2]
[361053179,1747219832298,-468.67,0.00010989,2]
[361053181,1747219832307,-190.95614198,0.00010989,2]
[361053182,1747219832338,-209.04385802,0.00010989,2]
[361053183,1747219832348,-208.11625118,0.00010989,2]
[361053184,1747219832362,-191.88374882,0.00010989,2]
[361053185,1747219832372,-520.3087344,0.00010989,2]
[361053186,1747219832382,-514.1,0.00010989,2]
[361053187,1747219832392,-400.0,0.00010989,2]
[361053188,1747219832401,-373.94806478,0.00010989,2]
[361053189,1747219832411,-400.0,0.00010989,2]
[361053190,1747219832421,-543.76,0.00010989,2]
[361053191,1747219832430,-400.0,0.00010989,2]
[361053192,1747219832440,-626.45,0.00010989,2]
[361053193,1747219832449,-861.79,0.00010989,2]
[361053194,1747219832458,-584.06,0.00010989,2]
[361053195,1747219832467,-482.3,0.00010989,2]
[361053196,1747219832476,-400.0,0.00010989,2]
[361053197,1747219832485,-400.0,0.00010989,2]
[361053198,1747219832495,-400.0,0.00010989,2]
[361053199,1747219832506,-400.0,0.00010989,2]
[361053200,1747219832515,-400.0,0.00010989,2]
[361053201,1747219832526,-400.0,0.00010989,2]
[361053202,1747219832536,-400.0,0.00010989,2]
[361053203,1747219832546,-400.0,0.00010989,2]
[361053204,1747219832555,-1231.35,0.00010989,2]
[361053205,1747219832564,-526.94,0.00010989,2]
[361053206,1747219832574,-400.0,0.00010989,2]
[361053207,1747219832583,-628.46,0.00010989,2]
[361053208,1747219832593,-522.78,0.00010989,2]
[361053209,1747219832606,-400.0,0.00010989,2]
[361053210,1747219832625,-400.0,0.00010989,2]
[361053211,1747219832641,-298.71552204,0.00010989,2]
[361053212,1747219832660,-673.75,0.00010989,2]
[361053213,1747219832680,-480.9782312,0.00010989,2]
[361053214,1747219832695,-400.0,0.00010989,2]
[361053215,1747219832713,-310.84776767,0.00010989,2]
[361053216,1747219832733,-400.0,0.00010989,2]
[361053217,1747219832751,-400.0,0.00010989,2]
[361053218,1747219832773,-1015.4,0.00010989,2]
[361053219,1747219832791,-400.0,0.00010989,2]
[361053220,1747219832810,-490.54,0.00010989,2]
[361053221,1747219832826,-400.0,0.00010989,2]
[361053222,1747219832844,-400.0,0.00010989,2]
[361053223,1747219832860,-400.0,0.00010989,2]
[361053224,1747219832877,-400.0,0.00010989,2]
[361053225,1747219832893,-400.0,0.00010989,2]
[361053226,1747219832911,-663.85,0.00010989,2]
[361053227,1747219832926,-400.0,0.00010989,2]
[361053228,1747219832941,-400.0,0.00010989,2]
[361053229,1747219832957,-400.0,0.00010989,2]
[361053230,1747219832971,-1408.72,0.00010989,2]
[361053231,1747219832988,-440.31,0.00010989,2]
[361053232,1747219833003,-400.0,0.00010989,2]
[361053233,1747219833021,-400.0,0.00010989,2]
[361053234,1747219833037,-153.87951344,0.00010989,2]
[361053235,1747219833054,-400.0,0.00010989,2]
[361053236,1747219833071,-400.0,0.00010989,2]
[361053237,1747219833087,-484.73,0.00010989,2]
[361053238,1747219833103,-400.0,0.00010989,2]
[361053239,1747219833118,-583.96,0.00010989,2]
[361053240,1747219833135,-400.0,0.00010989,2]
[361053241,1747219833150,-707.8,0.00010989,2]
[361053242,1747219833166,-545.66090587,0.00010989,2]
[361053243,1747219833182,-400.0,0.00010989,2]
[361053244,1747219833199,-400.0,0.00010989,2]
[361053245,1747219833216,-992.08,0.00010989,2]
[361053246,1747219833232,-400.0,0.00010989,2]
[361053247,1747219833247,-400.0,0.00010989,2]
[361053248,1747219833265,-400.0,0.00010989,2]
[361053249,1747219833282,-1215.51,0.00010989,2]
[361053250,1747219833297,-596.26,0.00010989,2]
[361053251,1747219833313,-400.0,0.00010989,2]
[361053252,1747219833329,-400.0,0.00010989,2]
[361053253,1747219833345,-1157.71,0.00010989,2]
[361053254,1747219833361,-400.0,0.00010989,2]
[361053255,1747219833377,-944.39715657,0.00010989,2]
[361053256,1747219833399,-520.78,0.00010989,2]
[361053257,1747219833483,-9.90284343,0.00010989,2]
[361053258,1747219833499,-400.0,0.00010989,2]
[361053259,1747219833515,-153.80523391,0.00010989,2]
[361053260,1747219833533,-3141.4593144,0.00010989,2]
[361053261,1747219834603,506.89,8.267e-05,2]
[361053265,1747219837708,-506.89,0.00010531,2]
[361053266,1747219837719,-500.0,0.00010986,2]
[361053267,1747219837729,-500.0,0.00010986,2]
[361053268,1747219837739,-500.0,0.00010986,2]
[361053269,1747219837749,-500.0,0.00010986,2]
[361053270,1747219837760,-262.95702648,0.00010986,2]
[361053271,1747219837854,-237.04297352,0.00010986,2]
[361053272,1747219837865,-500.0,0.00010986,2]
[361053273,1747219837874,-500.0,0.00010986,2]
[361053274,1747219837884,-500.0,0.00010986,2]
[361053275,1747219837893,-500.0,0.00010986,2]
[361053276,1747219837902,-500.0,0.00010986,2]
[361053277,1747219837912,-500.0,0.00010986,2]
[361053278,1747219837922,-500.0,0.00010986,2]
[361053279,1747219837932,-500.0,0.00010986,2]
[361053280,1747219837941,-500.0,0.00010986,2]
[361053281,1747219837950,-500.0,0.00010986,2]
[361053282,1747219837959,-500.0,0.00010986,2]
[361053284,1747219837968,-62.02626431,0.00010986,2]
[361053386,1747219840111,-437.97373569,0.00010986,2]
[361053388,1747219840120,-500.0,0.00010986,2]
[361053390,1747219840130,-500.0,0.00010986,2]
[361053392,1747219840140,-500.0,0.00010986,2]
[361053394,1747219840150,-500.0,0.00010986,2]
[361053396,1747219840160,-500.0,0.00010986,2]
[361053398,1747219840169,-500.0,0.00010986,2]
[361053400,1747219840180,-500.0,0.00010986,2]
[361053403,1747219840191,-500.0,0.00010986,2]
[361053404,1747219840200,-500.0,0.00010986,2]
[361053406,1747219840210,-500.0,0.00010986,2]
[361053408,1747219840219,-500.0,0.00010986,2]
[361053410,1747219840228,-500.0,0.00010986,2]
[361053412,1747219840238,-500.0,0.00010986,2]
[361053414,1747219840247,-500.0,0.00010986,2]
[361053416,1747219840257,-500.0,0.00010986,2]
[361053419,1747219840268,-500.0,0.00010986,2]
[361053420,1747219840277,-500.0,0.00010986,2]
[361053422,1747219840286,-500.0,0.00010986,2]
[361053424,1747219840296,-500.0,0.00010986,2]
[361053426,1747219840305,-333.27715202,0.00010986,2]
[361053428,1747219840314,-500.0,0.00010986,2]
[361053430,1747219840323,-500.0,0.00010986,2]
[361053432,1747219840333,-500.0,0.00010986,2]
[361053434,1747219840343,-500.0,0.00010986,2]
[361053436,1747219840352,-2159.26545169,0.00010989,2]
[361053438,1747219840363,-400.0,0.00010989,2]
[361053440,1747219840372,-400.0,0.00010989,2]
[361053442,1747219840382,-501.78,0.00010989,2]
[361053444,1747219840392,-1159.79,0.00010989,2]
[361053446,1747219840402,-400.0,0.00010989,2]
[361053448,1747219840411,-400.0,0.00010989,2]
[361053450,1747219840420,-2243.4621289,0.00010989,2]
[361053454,1747219840445,-166.2578711,0.00010989,2]
[361053456,1747219840454,-400.0,0.00010989,2]
[361053458,1747219840465,-168.3310597,0.00010989,2]
[361053461,1747219840484,-138.9889403,0.00010989,2]
[361053463,1747219840494,-639.42,0.00010989,2]
[361053465,1747219840504,-400.0,0.00010989,2]